fUST/lending_fUST_20241021
["ID","MTS","AMOUNT","RATE_DAILY","PERIOD"]
[340566428,1729492246474,-193.313089,0.00013699,2]
[340566429,1729492246483,-151.0,0.00013699,2]
[340566430,1729492246492,-151.0,0.00013699,2]
[340566431,1729492246502,-165.451485,0.00013699,2]
[340566433,1729492246511,-165.45149,0.00013699,2]
[340566434,1729492246520,-151.0,0.00013699,2]
[340566435,1729492246529,-151.0,0.00013699,2]
[340566436,1729492246539,-151.0,0.00013699,2]
[340566437,1729492246548,-155.368918,0.000137,2]
[340566438,1729492246557,-2000.0,0.00013743,2]
[340566439,1729492246566,-181.078508,0.00013743,2]
[340566440,1729492246575,-181.078508,0.00013743,2]
[340566441,1729492246584,-2000.0,0.00013943,2]
[340566442,1729492246594,-150.0,0.00014,2]
[340566443,1729492246603,-150.112233,0.00014,2]
[340566444,1729492246612,-2489.09680268,0.00014261,2]
[340566445,1729492246622,-150.112233,0.000143,2]
[340566446,1729492246631,-253.0,0.00014355,2]
[340566447,1729492246641,-55604.7527241,0.00014374,2]
[340566448,1729492246650,-3737.91520811,0.00014374,2]
[340566449,1729492246659,-593.566614,0.00014384,2]
[340566450,1729492246669,-2500.0,0.00014461,2]
[340566451,1729492246678,-500.0,0.0001452,2]
[340566452,1729492246687,-302.3308074,0.00014521,2]
[340566453,1729492246696,-2702.66020257,0.00014609,2]
[340566454,1729492246706,-150.112233,0.000147,2]
[340566455,1729492246715,-162.587386,0.0001472,2]
[340566456,1729492246724,-193.313089,0.0001472,2]
[340566457,1729492246733,-193.313096,0.0001472,2]
[340566458,1729492246743,-181.078508,0.0001482,2]
[340566459,1729492246752,-181.07851,0.0001482,2]
[340566460,1729492246762,-201.0,0.0001498,2]
[340566461,1729492246771,-200.27683081,0.00015,4]
[340566462,1729492246780,-218.440091,0.00015,2]
[340566463,1729492246789,-150.112233,0.00015,2]
[340566464,1729492246798,-3000.0,0.0001502,2]
[340566465,1729492246808,-593.566614,0.00015068,2]
[340566466,1729492246817,-369.57835404,0.000152,2]
[340566467,1729492246827,-7475.83041622,0.00015274,2]
[340566468,1729492246835,-150.112233,0.000153,2]
[340566469,1729492246846,-150.112233,0.000153,2]
[340566470,1729492246855,-500.0,0.00015342,2]
[340566471,1729492246865,-447.0298175,0.00015342,2]
[340566472,1729492246874,-1495.76423664,0.0001551,2]
[340566473,1729492246884,-150.112233,0.000156,2]
[340566474,1729492246894,-150.112233,0.000156,2]
[340566475,1729492246903,-3500.0,0.00015614,2]
[340566476,1729492246912,-289.595,0.0001571,2]
[340566477,1729492246921,-2702.66020257,0.00015722,2]
[340566478,1729492246931,-369.578354,0.00015813,2]
[340566479,1729492246940,-150.112233,0.00016,2]
[340566480,1729492246950,-150.112233,0.00016,2]
[340566481,1729492246959,-150.112239,0.00016,2]
[340566482,1729492246969,-500.0,0.0001606,2]
[340566483,1729492246979,-500.0,0.0001606,2]
[340566484,1729492246989,-7999.52755316,0.00016137,2]
[340566485,1729492246999,-500.0,0.00016164,2]
[340566486,1729492247009,-500.0,0.00016197,2]
[340566487,1729492247018,-177.85840119,0.00016238,2]
[340566494,1729492768743,1000.000001,0.0001,2]
[340566496,1729492931783,152.75354097,0.00015,120]
[340566500,1729493358109,-165.582744,0.00010959,2]
[340566501,1729493412395,1112.40704371,0.00010404,2]
[340566502,1729493412428,3887.59295629,0.00010404,2]
[340566517,1729493431876,-5267.47999749,0.00014511,2]
[340566519,1729493438074,-645.9168,0.00014511,2]
[340566523,1729493438266,-485.81,0.00014511,2]
[340566529,1729493439905,-336.02575645,0.00014511,2]
[340566563,1729493445838,-620.09726334,0.00014511,2]
[340566567,1729494138107,400.0,0.000104,2]
[340566568,1729494190320,300.94238071,0.000104,2]
[340566569,1729494254772,300.0,0.000104,3]
[340566605,1729494638134,-165.582744,0.00010959,2]
[340566607,1729494638145,-275.17,0.00010959,2]
[340566608,1729494638160,-485.62,0.00010959,2]
[340566609,1729494638171,-404.68,0.00010959,2]
[340566610,1729494638181,-191.66281149,0.00010959,2]
[340566666,1729494643076,-145.56718851,0.00010959,2]
[340566668,1729494643087,-281.03,0.00010959,2]
[340566670,1729494643097,-234.19,0.00010959,2]
[340566672,1729494643107,-195.16,0.00010959,2]
[340566674,1729494643116,-162.63,0.00010959,2]
[340566676,1729494643126,-300.0,0.00011378,2]
[340566677,1729494643135,-300.0,0.00011378,2]
[340566678,1729494643145,-1304.0712119,0.00011379,2]
[340566679,1729494643160,-5565.34403595,0.00011934,2]
[340566680,1729494643193,-4118.87080956,0.00011934,2]
[340566681,1729494643207,-6868.2,0.00011934,2]
[340566682,1729494643239,-89.80422112,0.00011934,2]
[340566685,1729494646007,-4774.19859307,0.00011934,2]
[340566686,1729494646018,-160.0006667,0.00012356,2]
[340566687,1729494646029,-3000.0,0.00012474,2]
[340566688,1729494646041,-420.0,0.00012498,2]
[340566689,1729494646053,-188.14614094,0.00013,2]
[340566690,1729494646063,-107307.69021667,0.00013,2]
[340566693,1729494859882,1000.0,0.0001,2]
[340566710,1729495561951,1128.3,0.0002,90]
[340566711,1729495772063,3000.0,0.000104,2]
[340566732,1729495832266,-300.0,0.00010722,2]
[340566733,1729495832278,-300.0,0.00010722,2]
[340566734,1729495832288,-8914.59193041,0.00010723,2]
[340566753,1729495838638,-15543.22829523,0.00010723,2]
[340566754,1729495838652,-442.17977436,0.00010723,2]
[340566755,1729495838662,-208.333333,0.00010933,2]
[340566756,1729495838671,-165.582744,0.00010959,2]
[340566757,1729495838682,-82.85791186,0.00010959,2]
[340566758,1729495838733,-728.41208814,0.00010959,2]
[340566759,1729495838742,-20.73091532,0.00011,3]
[340566760,1729495838755,-979.26908468,0.00011,3]
[340566761,1729495838764,-208.333333,0.00011503,2]
[340566762,1729495838774,-420.0,0.00011785,2]
[340566763,1729495838784,-218.33384774,0.00011794,2]
[340566764,1729495838794,-420.0,0.00011794,2]
[340566765,1729495838804,-1471.71002485,0.000129,2]
[340566766,1729495838814,-1466.74778146,0.000129,2]
[340566796,1729495840251,-4.96224336,0.000129,2]
[340566798,1729495840261,-467.0,0.00012954,2]
[340566800,1729495840271,-180.0,0.00012973,2]
[340566802,1729495840282,-785.40024877,0.00012998,2]
[340566803,1729495840295,-15546.48590287,0.00013,2]
[340566995,1729497038966,-300.0,0.00010958,2]
[340566996,1729497038977,-139.78132206,0.00010958,2]
[340567004,1729497042566,-160.21867794,0.00010958,2]
[340567005,1729497042575,-165.582744,0.00010959,2]
[340567006,1729497042585,-406.07,0.00010959,2]
[340567007,1729497042595,-338.39,0.00010959,2]
[340567008,1729497042604,-281.99,0.00010959,2]
[340567009,1729497042616,-234.99,0.00010959,2]
[340567010,1729497042625,-195.83,0.00010959,2]
[340567011,1729497042635,-163.19,0.00010959,2]
[340567012,1729497042644,-815.98,0.00010959,2]
[340567013,1729497042653,-1472.16823806,0.00011268,2]
[340567062,1729497046613,-1527.83176194,0.00011268,2]
[340567063,1729497046626,-552.412452,0.00011446,2]
[340567064,1729497046636,-4784.0561336,0.00011523,2]
[340567071,1729497603551,500.0,0.0001,2]
[340567072,1729497622742,300.42,0.000105,3]
[340567075,1729497765090,400.0,0.000105,2]
[340567076,1729497895234,155.221559,0.00020299,120]
[340567078,1729497974776,-302.15,0.00010959,2]
[340567079,1729497974798,-270.26,0.00010959,2]
[340567080,1729497974821,-267.18,0.00010959,2]
[340567081,1729497974844,-222.65,0.00010959,2]
[340567082,1729497974867,-165.582744,0.00010959,2]
[340567083,1729497974890,-185.55,0.00010959,2]
[340567084,1729497974916,-185.55,0.00010959,2]
[340567085,1729497974939,-742.2,0.00010959,2]
[340567086,1729497974961,-400.0,0.00011,3]
[340567087,1729497974985,-17258.877256,0.00011494,2]
[340567088,1729497984539,-7641.122744,0.00011494,2]
[340567089,1729497984563,-151.0,0.000115,2]
[340567124,1729498233081,-531.1536918,0.00011679,2]
[340567125,1729498233091,-500.0,0.000128,3]
[340567126,1729498233101,-1103.78251865,0.000129,2]
[340567127,1729498233111,-218.33384774,0.00013,2]
[340567128,1729498233121,-2017.32609375,0.00013,2]
[340567129,1729498233132,-691.1515416,0.00013,2]
[340567165,1729498240761,-638.36546201,0.00013,2]
[340567170,1729498243848,-804.09197599,0.00013,2]
[340567193,1729498246690,-3149.87798774,0.00013,2]
[340567194,1729498261576,184.34260593,0.00010959,2]
[340567450,1729499438728,-250.0,0.00010663,2]
[340567451,1729499438740,-2370.7849648,0.00010855,2]
[340567452,1729499438751,-165.582744,0.00010959,2]
[340567453,1729499438761,-172.29,0.00010959,2]
[340567454,1729499438771,-259.64670694,0.00010959,2]
[340567455,1729499438835,-601.85329306,0.00010959,2]
[340567456,1729499438845,-187.59472,0.00010983,2]
[340567457,1729499438855,-300.0,0.00011013,2]
[340567458,1729499438866,-300.0,0.00011013,2]
[340567459,1729499438875,-24900.0,0.00011014,2]
[340567460,1729499438884,-170.944201,0.00011247,2]
[340567461,1729499438893,-187.59472,0.0001127,2]
[340567462,1729499438903,-179.43893337,0.00011303,2]
[340567463,1729499438913,-170.944201,0.00011303,2]
[340567464,1729499438923,-187.59472,0.00011556,2]
[340567465,1729499438933,-153.0,0.00012041,2]
[340567466,1729499438944,-153.0,0.00012041,2]
[340567467,1729499438954,-420.0,0.00012102,2]
[340567468,1729499438965,-420.0,0.00012115,2]
[340567469,1729499438975,-153.0,0.00012641,2]
[340567470,1729499438985,-153.0,0.00012741,2]
[340567471,1729499438995,-193.94720824,0.000129,2]
[340567472,1729499439004,-965.80970378,0.000129,2]
[340567473,1729499439014,-18105.35028847,0.00012979,2]
[340567474,1729499439027,-26533.80029273,0.00012979,2]
[340567475,1729499439037,-4605.29897269,0.00012979,2]
[340567476,1729499439046,-12382.74109794,0.0001298,2]
[340567477,1729499439252,-72907.65008138,0.0001298,2]
[340567478,1729499439266,-3987.90998298,0.0001298,2]
[340567479,1729499439276,-9210.59794538,0.0001298,2]
[340567480,1729499439286,-44639.1505812,0.00012989,2]
[340567481,1729499439295,-4605.29897269,0.00012989,2]
[340567482,1729499439305,-151.0,0.00012989,2]
[340567483,1729499439314,-151.0,0.0001299,2]
[340567484,1729499439322,-184.468393,0.0001299,2]
[340567485,1729499439332,-151.0,0.0001299,2]
[340567486,1729499439341,-151.0,0.0001299,2]
[340567487,1729499439351,-44639.1505812,0.0001299,2]
[340567488,1729499439360,-4605.29897269,0.0001299,2]
[340567489,1729499439370,-44423.53,0.00012999,2]
[340567490,1729499439380,-151.0,0.00012999,2]
[340567491,1729499439390,-24195.28843835,0.00013,2]
[340567492,1729499439399,-1000.0,0.00013,5]
[340567493,1729499439409,-847.30537362,0.00013,2]
[340567499,1729499443665,-3549.99999983,0.00013,2]
[340567511,1729499446658,-602.69462655,0.00013,2]
[340567512,1729499446669,-151.0,0.00013,2]
[340567513,1729499446679,-151.0,0.00013,2]
[340567514,1729499446688,-504.00933357,0.00013,2]
[340567515,1729499446698,-500.0,0.00013,2]
[340567516,1729499446708,-500.0,0.00013,2]
[340567517,1729499446718,-500.0,0.00013,2]
[340567518,1729499446728,-167.5,0.00013,2]
[340567519,1729499446740,-153.0,0.00013041,2]
[340567520,1729499446751,-168.0,0.0001313,2]
[340567521,1729499446761,-1000.0,0.00013274,2]
[340567522,1729499446771,-351.19322002,0.00013274,2]
[340567523,1729499446780,-300.0,0.00013299,2]
[340567524,1729499446790,-500.43871116,0.000135,2]
[340567525,1729499446800,-1500.0,0.00013675,2]
[340567526,1729499446809,-288.134536,0.00013699,2]
[340567527,1729499446819,-151.0,0.00013699,2]
[340567528,1729499446829,-151.0,0.00013699,2]
[340567529,1729499446840,-151.0,0.00013774,2]
[340567530,1729499446849,-17546.79741891,0.0001396,2]
[340567564,1729500631876,-943.47558746,0.00010562,2]
[340567565,1729500631886,-481.1780931,0.00010858,2]
[340567566,1729500631896,-30.98978139,0.0001086,2]
[340567567,1729500631908,-127.98169122,0.0001086,2]
[340567568,1729500631917,-1272.02863823,0.00010894,2]
[340567569,1729500631928,-2723.93376634,0.00010894,2]
[340567587,1729500638205,-656.64,0.00010894,2]
[340567588,1729500638217,-58.38798933,0.00010894,2]
[340567589,1729500638226,-165.582744,0.00010959,2]
[340567590,1729500638235,-184.46,0.00010959,2]
[340567591,1729500638245,-325.53,0.00010959,2]
[340567592,1729500638255,-164.3600928,0.00010959,2]
[340567609,1729500642127,-106.9199072,0.00010959,2]
[340567610,1729500642136,-226.06,0.00010959,2]
[340567611,1729500642146,-163.38536595,0.00010959,2]
[340567612,1729500642159,-25.00463405,0.00010959,2]
[340567613,1729500642169,-156.99,0.00010959,2]
[340567614,1729500642179,-784.97,0.00010959,2]
[340567615,1729500642188,-300.0,0.00010959,2]
[340567616,1729500642198,-300.0,0.00010959,2]
[340567617,1729500642208,-179.43893337,0.00010959,2]
[340567618,1729500642217,-1888.98920078,0.0001096,2]
[340567619,1729500642228,-892.190604,0.0001096,2]
[340567658,1729500642903,-1353.26088849,0.0001096,2]
[340567661,1729500642915,-20765.55930673,0.0001096,2]
[340567662,1729500642925,-250.0,0.00010987,2]
[340567663,1729500642935,-420.0,0.00012043,2]
[340567664,1729500642945,-420.0,0.00012054,2]
[340567665,1729500642955,-845.08349082,0.000129,2]
[340567666,1729500642965,-845.08349081,0.000129,2]
[340567667,1729500642975,-8286.39279213,0.00013596,2]
[340567668,1729500642984,-150.112233,0.000136,2]
[340567669,1729500642994,-150.112233,0.000139,2]
[340567670,1729500643004,-400.0057769,0.000139,2]
[340567671,1729500643015,-154.41706894,0.000139,2]
[340567672,1729500643026,-150.01,0.00013959,2]
[340567673,1729500643036,-529.0872346,0.00013979,2]
[340567674,1729500643046,-252.29003653,0.00013979,2]
[340567675,1729500643057,-65902.734375,0.0001398,2]
[340567676,1729500643067,-6907.94845866,0.0001398,2]
[340567677,1729500643077,-500.0,0.00013989,2]
[340567678,1729500643086,-32951.3671875,0.0001399,2]
[340567679,1729500643095,-3453.97422933,0.0001399,2]
[340567680,1729500643104,-1000.0,0.00014,6]
[340567681,1729500643114,-150.112233,0.00014,2]
[340567682,1729500643126,-151.0,0.00014,2]
[340567683,1729500643135,-151.0,0.00014,2]
[340567684,1729500643145,-151.0,0.00014,2]
[340567685,1729500643155,-151.0,0.00014,2]
[340567686,1729500643165,-151.0,0.00014,2]
[340567687,1729500643175,-151.0,0.00014,2]
[340567688,1729500643185,-151.0,0.00014,2]
[340567689,1729500643196,-151.0,0.00014,2]
[340567690,1729500643206,-151.0,0.00014,2]
[340567691,1729500643216,-151.0,0.00014,2]
[340567692,1729500643225,-151.0,0.00014,2]
[340567693,1729500643235,-151.0,0.00014,2]
[340567694,1729500643244,-151.0,0.00014,2]
[340567695,1729500643254,-151.0,0.00014,2]
[340567696,1729500643264,-151.0,0.00014,2]
[340567697,1729500643274,-151.0,0.00014,2]
[340567698,1729500643283,-151.0,0.00014,2]
[340567699,1729500643293,-151.0,0.00014,2]
[340567700,1729500643303,-151.358789,0.00014,2]
[340567701,1729500643312,-151.0,0.00014,2]
[340567702,1729500643323,-151.358789,0.00014,2]
[340567703,1729500643332,-151.0,0.00014,2]
[340567704,1729500643342,-314.683053,0.00014,2]
[340567705,1729500643351,-314.683053,0.00014,2]
[340567706,1729500643361,-151.0,0.00014,2]
[340567707,1729500643371,-151.0,0.00014,2]
[340567708,1729500643380,-151.0,0.00014,2]
[340567709,1729500643389,-54953.700993,0.00014,2]
[340567710,1729500643399,-150.112233,0.000141,2]
[340567711,1729500643408,-150.112233,0.000142,2]
[340567712,1729500643418,-192.0,0.0001439,2]
[340567713,1729500643427,-500.0,0.000144,4]
[340567714,1729500643437,-150.112233,0.000144,2]
[340567715,1729500643447,-151.0,0.0001449,2]
[340567716,1729500643456,-151.0,0.0001449,2]
[340567717,1729500643465,-151.0,0.0001449,2]
[340567718,1729500643474,-300.42,0.000145,4]
[340567719,1729500643484,-212.03281027,0.000145,2]
[340567720,1729500643493,-503.70711984,0.000145,2]
[340567721,1729500643502,-503.9593197,0.000145,2]
[340567722,1729500643512,-500.0,0.000145,2]
[340567723,1729500643521,-500.0,0.000145,2]
[340567724,1729500643531,-150.112233,0.000145,2]
[340567725,1729500643540,-158.28354857,0.0001451,2]
[340567726,1729500643550,-154.41706891,0.00014621,2]
[340567727,1729500643560,-153.9395326,0.00014658,2]
[340567728,1729500643569,-414.9392584,0.00014658,2]
[340567729,1729500643579,-210.5530868,0.00014658,2]
[340567730,1729500643589,-414.9392584,0.00014658,2]
[340567731,1729500643598,-414.9392584,0.00014658,2]
[340567732,1729500643607,-414.9392584,0.00014658,2]
[340567733,1729500643616,-414.9392584,0.00014658,2]
[340567734,1729500643626,-844.8225046,0.00014658,2]
[340567735,1729500643635,-150.112233,0.000147,2]
[340567736,1729500643644,-150.112233,0.000147,2]
[340567737,1729500643654,-587.8171746,0.00014725,2]
[340567738,1729500643662,-631.33063644,0.00014725,2]
[340567739,1729500643671,-500.0,0.00014725,2]
[340567740,1729500643681,-1386.51995598,0.00014731,3]
[340567741,1729500643690,-451.87133675,0.00014774,2]
[340567742,1729500643700,-1000.0,0.00014774,2]
[340567743,1729500643709,-500.0,0.00014811,2]
[340567744,1729500643719,-151.0,0.0001487,2]
[340567745,1729500643729,-211.686909,0.0001487,2]
[340567746,1729500643738,-151.0,0.0001487,2]
[340567747,1729500643748,-151.358789,0.0001487,2]
[340567748,1729500643757,-151.0,0.0001487,2]
[340567749,1729500643766,-151.358789,0.0001487,2]
[340567750,1729500643775,-151.0,0.0001487,2]
[340567751,1729500643784,-314.683053,0.0001487,2]
[340567752,1729500643794,-314.683053,0.0001487,2]
[340567753,1729500643803,-151.0,0.0001487,2]
[340567754,1729500643812,-162.326593,0.0001487,2]
[340567755,1729500643821,-151.0,0.0001487,2]
[340567756,1729500643831,-57851.17173282,0.0001487,2]
[340567800,1729500645815,-3424.3,0.0001487,2]
[340567807,1729500645870,-626.68295598,0.0001487,2]
[340567815,1729501496680,188388.325009,0.0001,2]
[340567834,1729501832041,-300.0,0.00010671,2]
[340567835,1729501832051,-300.0,0.00010671,2]
[340567836,1729501832061,-83.0,0.00010672,2]
[340567877,1729501838164,-24817.0,0.00010672,2]
[340567879,1729501838174,-250.0,0.00010753,2]
[340567881,1729501838184,-2635.3927682,0.00010953,2]
[340567883,1729501838194,-165.582744,0.00010959,2]
[340567885,1729501838203,-3000.0,0.00011033,2]
[340567886,1729501838212,-207.02859083,0.00011033,2]
[340567888,1729501838222,-672.72161557,0.00011094,2]
[340568010,1729501843030,-376.9,0.00011094,2]
[340568011,1729501843088,-809.35137113,0.00011094,2]
[340568012,1729501843099,-250.0,0.00011723,2]
[340568013,1729501843108,-250.0,0.00011755,2]
[340568015,1729501843118,-250.0,0.00011787,2]
[340568016,1729501843127,-250.0,0.00011819,2]
[340568017,1729501843136,-250.0,0.00011851,2]
[340568018,1729501843146,-250.0,0.00011883,2]
[340568019,1729501843156,-250.0,0.00011915,2]
[340568020,1729501843165,-250.0,0.00011948,2]
[340568021,1729501843174,-250.0,0.0001198,2]
[340568022,1729501843184,-250.0,0.00012012,2]
[340568023,1729501843193,-250.0,0.00012044,2]
[340568024,1729501843203,-250.0,0.00012076,2]
[340568025,1729501843212,-250.0,0.00012108,2]
[340568026,1729501843222,-250.0,0.0001214,2]
[340568027,1729501843231,-250.0,0.00012173,2]
[340568028,1729501843241,-250.0,0.00012205,2]
[340568029,1729501843250,-250.0,0.00012237,2]
[340568030,1729501843259,-250.0,0.00012269,2]
[340568031,1729501843270,-250.0,0.00012301,2]
[340568032,1729501843279,-250.0,0.00012333,2]
[340568033,1729501843289,-769.7938267,0.000129,2]
[340568042,1729501845988,-210.12,0.00010959,2]
[340568043,1729501845998,-160.6315428,0.000129,2]
[340568044,1729501846009,-930.42536949,0.000129,2]
[340568045,1729501846019,-1210.7524998,0.00013268,2]
[340568046,1729501846031,-17199.87058791,0.000133,2]
[340568047,1729501846310,-262.0,0.000133,2]
[340568061,1729502733132,-165.582744,0.00010959,2]
[340568062,1729502733158,-3000.0,0.00011835,2]
[340568063,1729502733183,-300.0,0.00012427,2]
[340568064,1729502733208,-300.0,0.00012427,2]
[340568065,1729502733233,-24900.0,0.00012428,2]
[340568066,1729502733258,-250.0,0.00012493,2]
[340568067,1729502733281,-207.02859083,0.000129,2]
[340568068,1729502733305,-1200.0,0.00013,2]
[340568069,1729502733329,-8888.06308996,0.00013046,2]
[340568070,1729502733353,-153.0,0.00013068,2]
[340568071,1729502733378,-155.1381125,0.00013068,2]
[340568072,1729502733404,-153.0,0.000132,2]
[340568073,1729502733437,-153.0,0.000132,2]
[340568074,1729502733471,-153.0,0.000132,2]
[340568075,1729502733497,-153.0,0.000132,2]
[340568076,1729502733524,-15692.13707809,0.000133,2]
[340568077,1729502733549,-186.227,0.000133,2]
[340568078,1729502733573,-203.27258156,0.000133,2]
[340568079,1729502733596,-1000.0,0.000137,2]
[340568080,1729502733620,-260.75327,0.000139,2]
[340568081,1729502733645,-414.9392584,0.00014247,2]
[340568082,1729502733670,-210.7185294,0.00014247,2]
[340568083,1729502733693,-302.1038448,0.00014247,2]
[340568084,1729502733717,-210.7185294,0.00014247,2]
[340568085,1729502733741,-414.9392584,0.00014247,2]
[340568086,1729502733766,-414.9392584,0.00014247,2]
[340568087,1729502733790,-210.7185294,0.00014247,2]
[340568088,1729502733816,-210.7185294,0.00014247,2]
[340568089,1729502733841,-413.848668,0.00014247,2]
[340568090,1729502733865,-210.7185294,0.00014247,2]
[340568091,1729502733889,-425.7491327,0.00014247,2]
[340568092,1729502733915,-154.41706891,0.00014421,2]
[340568093,1729502733942,-49857.5307667,0.000145,2]
[340568094,1729502733969,-9354.2033938,0.000145,2]
[340568095,1729502733997,-500.0,0.00014509,2]
[340568096,1729502734025,-11706.90812595,0.0001452,2]
[340568098,1729502754123,-175.1,0.00010959,2]
[340568099,1729502754147,-875.53,0.00010959,2]
[340568100,1729502754172,-38150.62264075,0.0001452,2]
[340568101,1729502754195,-9354.2033938,0.0001452,2]
[340568102,1729502754216,-34168.86365239,0.00014521,2]
[340568103,1729502754241,-151.0,0.00014521,2]
[340568104,1729502754264,-151.0,0.00014521,2]
[340568105,1729502754286,-151.0,0.00014521,2]
[340568106,1729502754307,-151.0,0.00014521,2]
[340568107,1729502754328,-251.746443,0.00014521,2]
[340568108,1729502754349,-151.0,0.00014521,2]
[340568109,1729502754370,-251.746443,0.00014521,2]
[340568110,1729502754391,-151.0,0.00014521,2]
[340568111,1729502754412,-151.0,0.0001453,2]
[340568112,1729502754433,-151.0,0.0001453,2]
[340568113,1729502754454,-151.0,0.0001453,2]
[340568114,1729502754476,-151.0,0.0001453,2]
[340568115,1729502754498,-151.0,0.0001453,2]
[340568116,1729502754519,-151.0,0.0001453,2]
[340568117,1729502754545,-198.80127,0.0001453,2]
[340568118,1729502754567,-151.0,0.0001453,2]
[340568119,1729502754588,-191.515154,0.0001453,2]
[340568120,1729502754610,-151.0,0.0001453,2]
[340568121,1729502754631,-151.0,0.0001453,2]
[340568122,1729502754652,-151.0,0.0001453,2]
[340568123,1729502754674,-151.0,0.0001453,2]
[340568124,1729502754695,-251.746443,0.0001453,2]
[340568125,1729502754715,-151.0,0.0001453,2]
[340568126,1729502754736,-251.746443,0.0001453,2]
[340568127,1729502754757,-151.0,0.0001453,2]
[340568128,1729502754778,-903.46620884,0.0001453,2]
[340568129,1729502754802,-5417.85152352,0.0001453,2]
[340568130,1729502754823,-88888.0,0.0001453,2]
[340568131,1729502754844,-1000.0,0.0001453,2]
[340568132,1729502754865,-151.0,0.00014621,2]
[340568133,1729502754886,-151.0,0.00014621,2]
[340568134,1729502754909,-151.0,0.0001463,2]
[340568135,1729502754932,-151.0,0.0001463,2]
[340568136,1729502754953,-151.0,0.0001463,2]
[340568137,1729502754974,-151.0,0.00014641,2]
[340568138,1729502754995,-151.0,0.00014641,2]
[340568139,1729502755015,-154.59055,0.00014641,2]
[340568140,1729502755036,-152.576636,0.00014641,2]
[340568141,1729502755057,-273.902347,0.0001465,2]
[340568142,1729502755079,-8144.6782407,0.00014742,2]
[340568152,1729502797106,-151.0,0.00014521,2]
[340568153,1729502797132,-18.29422994,0.00014521,2]
[340568158,1729502832132,-1000.0,0.0001443,2]
[340568159,1729502832154,-187.94686206,0.00014521,2]
[340568160,1729502832177,-151.0,0.00014521,2]
[340568161,1729502832199,-151.0,0.0001453,2]
[340568162,1729502832221,-151.0,0.0001453,2]
[340568163,1729502832244,-697.81902717,0.00014642,2]
[340568164,1729502832267,-41712.852526,0.00014742,2]
[340568165,1729502832292,-9354.2033938,0.00014742,2]
[340568166,1729502832313,-172.345352,0.00014742,2]
[340568167,1729502832337,-151.0,0.00014742,2]
[340568168,1729502832361,-151.0,0.00014742,2]
[340568169,1729502832382,-151.0,0.00014742,2]
[340568170,1729502832404,-251.746443,0.00014742,2]
[340568171,1729502832428,-151.0,0.00014742,2]
[340568172,1729502832449,-251.746443,0.00014742,2]
[340568173,1729502832470,-151.0,0.00014742,2]
[340568174,1729502832490,-151.0,0.00014742,2]
[340568175,1729502832512,-151.0,0.00014742,2]
[340568176,1729502832533,-151.0,0.00014752,2]
[340568177,1729502832554,-151.0,0.00014752,2]
[340568178,1729502832576,-151.0,0.00014752,2]
[340568179,1729502832599,-151.0,0.00014752,2]
[340568180,1729502832621,-451.73310442,0.0001479,2]
[340568181,1729502832644,-24928.7653834,0.0001479,2]
[340568182,1729502832666,-4677.1016969,0.0001479,2]
[340568183,1729502832688,-151.0,0.0001479,2]
[340568184,1729502832711,-151.0,0.0001479,2]
[340568185,1729502832732,-151.0,0.0001479,2]
[340568186,1729502832752,-251.746443,0.0001479,2]